Cogmind - Beta 16.1 @@@ ROGUE MODE // 2026.02.17 @ 17:08:50 Player: Skergy Result: Destroyed by B6-NS3(R) with Subdweller Machine Gun Performance ------------- Evolutions (0) 0 Regions Visited (2) 400 Robots Destroyed (28) 140 Value Destroyed (637) 637 Prototype IDs (1) 20 Alien Tech Used (0) 0 Bonus (0) 0 TOTAL SCORE: 1197 Bonus ------- None Cogmind --------- Core Integrity 0/250 Matter 2/300 Energy 180/180 System Corruption 0% Temperature Cool (0) Movement Rolling (150) Ox4 Location -10/Subcaves Parts ------- > --- POWER (1) -------- Meta Core > --- PROPULSION (2+1) - Light Treads Subdweller Monowheel > --- UTILITY (2+1) ---- Huge Storage Unit Weapon Shielding > --- WEAPON (2+1) ----- Mini Grenade Launcher Mining Laser > --- INVENTORY (25) --- Ion Engine Ion Engine Aluminum Leg Aluminum Leg Aluminum Leg Improved Aluminum Leg Large Storage Unit High-capacity Matter Pod (0) High-capacity Matter Pod (0) High-capacity Matter Pod (0) High-capacity Matter Pod (0) Terrain Scan Processor Terrain Scan Processor Weapon Shielding Cobbler Unit EM Pulse Gun Assault Rifle Assault Rifle Light Assault Rifle Grenade Launcher Mining Laser Peak State ------------ > --- POWER ------------ Meta Core > --- PROPULSION ------- Improved Aluminum Leg Subdweller Monowheel > --- UTILITY ---------- Huge Storage Unit > --- WEAPON ----------- Mini Grenade Launcher > --- INVENTORY -------- Ion Engine Ion Engine Light Treads Aluminum Leg Aluminum Leg Aluminum Leg Improved Aluminum Leg Large Storage Unit High-capacity Matter Pod High-capacity Matter Pod High-capacity Matter Pod High-capacity Matter Pod Terrain Scan Processor Terrain Scan Processor Weapon Shielding Weapon Shielding Cobbler Unit EM Pulse Gun Assault Rifle Assault Rifle Light Assault Rifle Grenade Launcher Mining Laser Mining Laser [Rating: 23] Favorites ----------- Power Light Ion Engine Engine Light Ion Engine Power Core Meta Core Propulsion Light Treads Treads Light Treads Leg Improved Aluminum Leg Wheel Subdweller Monowheel Utility Weapon Shielding Device Improved Terrain Scanner Storage Huge Storage Unit Protection Weapon Shielding Weapon Assault Rifle Ballistic Gun Assault Rifle Launcher Mini Grenade Launcher Special Weapon Mining Laser Build | -11 -10 -10 ------- Run | Yrd Mat Sub Slots Evolved . | . . . Power . | . . . Propulsion . | . . . Utility . | . . . Weapon . | . . . Parts Attached 23 | 7 5 11 Power 3 | 1 . 2 Engine 2 | 1 . 1 Core 1 | . . 1 Reactor . | . . . Propulsion 7 | 2 . 5 Treads 3 | 2 . 1 Leg 3 | . . 3 Wheel 1 | . . 1 Hover . | . . . Flight . | . . . Utility 7 | 2 5 . Device 2 | 1 1 . Storage 3 | 1 2 . Processor . | . . . Hackware . | . . . Protection 2 | . 2 . Artifact . | . . . Weapon 6 | 2 . 4 Energy Gun . | . . . Energy Cannon . | . . . Ballistic Gun 2 | 2 . . Ballistic Cannon . | . . . Launcher 2 | . . 2 Special Weapon 2 | . . 2 Impact Weapon . | . . . Slashing Weapon . | . . . Piercing Weapon . | . . . Special Melee Weapon . | . . . Unidentified Prototypes 1 | . . 1 Parts Lost 9 | . 1 8 Power 2 | . . 2 Propulsion 4 | . . 4 Utility 2 | . 1 1 Weapon 1 | . . 1 Highest Loss Streak 4 | . 1 4 To Critical Strikes 1 | . . 1 Average Backups 15 | 4 13 24 Power 1 | . 1 2 Propulsion 4 | 1 3 5 Utility 5 | . 5 9 Weapon 3 | . 2 6 Tool/Special . | . . . Unused Backups 14 | . . 14 Power 2 | . . 2 Propulsion 3 | . . 3 Utility 7 | . . 7 Weapon 2 | . . 2 Tool/Special . | . . . Average Slot Usage (%) 93 | . 99 82 Engine 12 | . 14 9 Treads 24 | . 28 16 Leg 2 | . . 6 Device 3 | . 2 6 Storage 13 | . 14 13 Protection 8 | . 11 1 Ballistic Gun 19 | . 28 3 Launcher 6 | . . 18 Peak Build Rating 23 | 7 10 23 Average Rating 9 | 5 8 14 On Entrance 5 | . 7 10 Avg Prop Armor Cover (%) 18 | . . 18 Naked Turns . | . . . Heaviest Build 88 | 13 88 88 Greatest Support 40 | 40 40 40 Greatest Overweight (x) 6 | . 2 6 Average Overweight (x) . | . . 2 Largest Inventory Capacity 25 | 8 25 25 Average Capacity 16 | 7 15 25 Most Carried 25 | 5 25 25 Average Carried 15 | 4 13 24 Final Capacity 25 | 8 25 25 Final Carried 25 | 5 25 22 Class Distribution -------------------- 100% | Mutant Dominant Class ---------------- Mutant | -10/Materials Mutant | -10/Subcaves Resources | -11 -10 -10 ----------- Run | Yrd Mat Sub Matter Collected 795 | 378 301 116 Remotely . | . . . Salvage Created 698 | 218 377 103 Parts 48 | 13 26 9 Haulers Intercepted . | . . . Recyclers Shooed . | . . . Parts Field Recycled . | . . . Retrieved Matter . | . . . Parts Self-Destructed 9 | . . 9 Prevented . | . . . Parts Restored . | . . . Kills | -11 -10 -10 ------- Run | Yrd Mat Sub Combat Hostiles Destroyed 19 | . 12 7 Guns 12 | . 12 . AOE 7 | . . 7 Classes Destroyed 7 | 2 3 2 Tunneler 6 | 6 . . Recycler 1 | 1 . . Watcher 2 | . 2 . Swarmer 6 | . 6 . Grunt 6 | . 6 . Cobbler 1 | . . 1 Subdweller 7 | . . 7 Best Kill Streak 5 | 2 5 5 Combat Bots Only 5 | . 5 5 Max Kills in Single Turn 2 | 1 1 2 Gunslinging . | . . . Exploded 2 | . . 2 Melee . | . . . Uniques/NPCs Destroyed . | . . . Combat | -11 -10 -10 -------- Run | Yrd Mat Sub Hostile Shots Fired 78 | . 46 32 Missed 18 | . 12 6 Hits 60 | . 34 26 Projectile 60 | . 34 26 Critical Strikes 2 | . . 2 Damage Taken 1197 | . 344 853 Core 262 | . 26 236 Absorbed by Shields . | . . . Redirected to Shielding 31 | . 26 5 Core Remaining (%) 100 | 100 . . Volleys Fired 88 | 19 49 20 Largest 2 | 2 2 2 Hottest 100 | 40 40 100 Shots Fired 166 | 38 98 30 Gun 136 | 38 98 . Cannon . | . . . Launcher 25 | . . 25 Special 5 | . . 5 Kinetic 136 | 38 98 . Thermal 5 | . . 5 Explosive 25 | . . 25 Electromagnetic . | . . . Robot Hit Streak 8 | 6 8 7 Robot Miss Streak 3 | 3 3 1 Penetration Max . | . . . Secondary Targets . | . . . Shots Hit Robots 88 | 23 57 8 Core Hits 48 | 8 23 17 Critical Kills . | . . . Critical Parts Destroyed 2 | 1 1 . Critical Strikes 2 | 1 1 . Destroy 2 | 1 1 . Melee Attacks . | . . . Impact . | . . . Slashing . | . . . Piercing . | . . . Sneak Attacks . | . . . Combat Hostiles . | . . . Follow-up Attacks . | . . . Damage Inflicted 2340 | 279 742 1319 Guns 1021 | 279 742 . Cannons . | . . . Explosions 1295 | . . 1295 Melee . | . . . Ramming . | . . . Kinetic 1021 | 279 742 . Thermal 24 | . . 24 Explosive 1295 | . . 1295 Electromagnetic . | . . . Impact . | . . . Slashing . | . . . Piercing . | . . . Highest Corruption . | . . . Average Corruption . | . . . Corruption Purged . | . . . Corruption Blocked . | . . . Overload Shots . | . . . Overflow Damage 9 | . . 9 Projectiles . | . . . Explosions 9 | . . 9 Melee . | . . . Knockbacks . | . . . Impact . | . . . Kinetic . | . . . Secondary . | . . . Self-Inflicted Damage 310 | . . 310 Shots 9 | . . 9 Rammed . | . . . Targets Rammed . | . . . Kicked . | . . . Crushed . | . . . Highest Temperature 2 | . 2 . Average Temperature 2 | . 2 . Received Heat Transfer 207 | . 105 102 Siege Activations . | . . . Martial Activations . | . . . Shielding Activations . | . . . Robots Disrupted . | . . . Combat Hostiles . | . . . Robots Corrupted . | . . . Combat Hostiles . | . . . Parts Fried . | . . . Impact Corruptions . | . . . Robots Melted . | . . . Combat Hostiles . | . . . Parts Melted . | . . . Heat Transferred 50 | . . 50 Parts Sabotaged . | . . . Parts Stolen . | . . . Parts Stripped . | . . . Power Chain Reactions . | . . . Alert | -11 -10 -10 ------- Run | Yrd Mat Sub Maximum Alert Level . | . . . Low Security (%) 100 | 100 100 . Level 1 . | . . . Level 2 . | . . . Level 3 . | . . . Level 4 . | . . . Level 5 . | . . . High Security . | . . . Max Security . | . . . Peak Influence 124 | 5 124 . Initial . | . . . Average 35 | 1 45 . Influence Increases 406 | 35 371 . Destroy 0b10 Robot/C 240 | . 240 . Destroy 0b10 Robot/NC 45 | 35 10 . Destroy Leader 54 | . 54 . Successful Hack 19 | . 19 . Destroy Structure 3 | . 3 . Lose Combat Pursuer 45 | . 45 . Influence Decreases 406 | 35 366 5 Entered New Map 3 | . . 3 Time Decay 403 | 35 366 2 Squads Dispatched 2 | . 2 . Investigation . | . . . Extermination . | . . . Reinforcement 2 | . 2 . Assault . | . . . Garrison . | . . . Intercept . | . . . Searches Triggered . | . . . Construction Impeded . | . . . Haulers Reinforced . | . . . Active Scanning Responses . | . . . Cargo Convoy Interrupts . | . . . Stealth | -11 -10 -10 --------- Run | Yrd Mat Sub Distress Signals 1 | . 1 . Communications Jammed . | . . . Distress Signals . | . . . Times Spotted 33 | . 24 9 Peak Tracking Total 4 | . 4 3 Tactical Retreats 3 | . 3 . Traps | -11 -10 -10 ------- Run | Yrd Mat Sub Traps Triggered . | . . . Indirectly . | . . . Trap Hack Attempts . | . . . Triggered . | . . . Disarmed . | . . . Reprogrammed . | . . . Reused . | . . . Traps Extracted . | . . . Installed . | . . . Triggered . | . . . Machines | -11 -10 -10 ---------- Run | Yrd Mat Sub Machines Disabled . | . . . Max in Single Turn . | . . . Machines Repaired . | . . . Machines Dismantled . | . . . Machines Sabotaged . | . . . Overloaded Fab Kills . | . . . Hacking | -11 -10 -10 --------- Run | Yrd Mat Sub Machines Accessed 5 | . 5 . Terminals 3 | . 3 . Fabricators . | . . . Repair Stations . | . . . Recycling Units 2 | . 2 . Scanalyzers . | . . . Garrison Access . | . . . Total Hacks 18 | . 18 . Successful 6 | . 6 . Failed 12 | . 12 . Catastrophic 1 | . 1 . Database Lockouts . | . . . Manual 16 | . 16 . Terminals 11 | . 11 . Fabricators . | . . . Repair Stations . | . . . Recycling Units 7 | . 7 . Scanalyzers . | . . . Garrison Access . | . . . Terminal Hacks . | . . . Fabricator Hacks . | . . . Repair Station Hacks . | . . . Recycling Unit Hacks . | . . . Scanalyzer . | . . . Garrison Access Hacks . | . . . Unauthorized Hacks 6 | . 6 . Terminals 3 | . 3 . Botnet 2 | . 2 . Operators 1 | . 1 . Fabricators . | . . . Repair Stations . | . . . Recycling Units 3 | . 3 . Reject 1 | . 1 . Recyclers 1 | . 1 . Mask 1 | . 1 . Scanalyzers . | . . . Garrison Access . | . . . Data Cores Recovered . | . . . Used . | . . . Hacking Detections 5 | . 5 . Full Trace Events . | . . . Feedback Events . | . . . Feedback Blocked . | . . . Robot Schematics Acquired . | . . . Robots Built . | . . . Authchips . | . . . Time . | . . . Total Robot Build Rating . | . . . Part Schematics Acquired . | . . . Parts Built . | . . . Authchips . | . . . Time . | . . . Total Part Build Rating . | . . . Part Studies Acquired . | . . . Parts Repaired . | . . . Time . | . . . Parts Recycled . | . . . Recycled Matter . | . . . Retrieved Matter . | . . . Retrieved Components . | . . . Parts Scanalyzed . | . . . Part Schematics Acquired . | . . . Parts Damaged . | . . . Bothacking | -11 -10 -10 ------------ Run | Yrd Mat Sub Used RIF Installer . | . . . Robots Hacked . | . . . Non-combat . | . . . Combat . | . . . Robot Hacks Applied . | . . . Relay Couplers Released . | . . . Fabnet Peak Effective % . | . . . Robots Rewired . | . . . Allies Hacked . | . . . Hacks Repelled . | . . . Allies | -11 -10 -10 -------- Run | Yrd Mat Sub Total Allies . | . . . Largest Group . | . . . Highest-Rated Group . | . . . Highest-Rated Ally . | . . . Total Orders . | . . . Ally Attacks . | . . . Total Damage . | . . . Kills . | . . . Allies Corrupted . | . . . Allies Melted . | . . . Intel | -11 -10 -10 ------- Run | Yrd Mat Sub Active Infowar (turns) 445 | 64 139 242 Terrain 271 | . 29 242 Seismic 174 | 64 110 . Robot Analysis Total . | . . . Derelict Logs Recovered . | . . . Drone Launches . | . . . Drone Recoveries . | . . . Exploration | -11 -10 -10 ------------- Run | Yrd Mat Sub Turns Passed 1779 | 280 1003 496 Spaces Moved 707 | 133 418 156 Core 4 | 4 . . Treads 624 | 129 418 77 Legs 24 | . . 24 Wheels 55 | . . 55 Hover . | . . . Flight . | . . . Fastest Speed 50 | 50 160 150 Average Speed 196 | 156 184 265 Slowest Speed 540 | 160 320 540 Overloaded Moves . | . . . Propulsion Burnouts . | . . . Robots Hopped . | . . . Potential Cave-ins . | . . . Cave-ins Triggered . | . . . Exploration Rate (%) 30 | 6 74 10 Regions Visited 2 Branch Regions 1 Pre-discovered Areas . | . . . Known Exits Taken . | . . . Unknown Exits Taken 2 | 1 1 . Scrap Searched . | . . . Spaces Dug . | . . . Terrain Destroyed 139 | . . 139 Melee . | . . . Projectile . | . . . AOE 139 | . . 139 Terrain Rammed . | . . . Walls Destroyed . | . . . Machines Disabled . | . . . Actions | -11 -10 -10 --------- Run | Yrd Mat Sub Total 911 | 163 554 194 Wait 61 | . 61 . Move 705 | 132 417 156 Hop . | . . . Pick Up 27 | 5 21 1 Fast Attach 10 | 7 . 3 Attach 7 | . 1 6 Detach 1 | . . 1 Swap 11 | . 4 7 Drop 1 | . 1 . Fire 88 | 19 49 20 Melee . | . . . Ram . | . . . Kick . | . . . Crush . | . . . Escape Stasis . | . . . Rewire . | . . . Trap . | . . . Miscellaneous . | . . . Route ------- -11/Scrapyard -10/Materials (discovered 5 exits: [*Mat x2] / [*Min x2] / [*Sub]) -10/Subcaves History --------- Turn | Location | Event 30 | -11/Scrapyard | Discovered new exit (range 15) 281 | -11/Scrapyard | Entered Materials 301 | -10/Materials | Build established: Mutant 573 | -10/Materials | Discovered new exit (range 16) 931 | -10/Materials | Discovered new exit (range 10) 1009 | -10/Materials | Discovered new exit (range 8) 1176 | -10/Materials | Discovered new exit (range 8) 1255 | -10/Materials | Discovered new exit (range 8) 1284 | -10/Materials | Entered Subcaves 1285 | -10/Subcaves | Approached by a straggling Scientist 1562 | -10/Subcaves | Ambushed by angry Subdweller bent on revenge 1585 | -10/Subcaves | Lost 4 parts (1p2n1u) 1641 | -10/Subcaves | A Subdweller sparked back to life 1641 | -10/Subcaves | A Subdweller sparked back to life 1641 | -10/Subcaves | A Subdweller sparked back to life 1648 | -10/Subcaves | Core integrity fell below 50% 1650 | -10/Subcaves | Ambushed by Subdweller buried in earth 1652 | -10/Subcaves | Ambushed by Subdweller buried in earth 1658 | -10/Subcaves | Core integrity fell below 20% 1665 | -10/Subcaves | Found Prototype Power Core 1665 | -10/Subcaves | Identified Meta Core 1667 | -10/Subcaves | Attached Meta Core, gained temporary slots: Propulsion, Utility, Weapon 1686 | -10/Subcaves | Lost 3 parts (1p1n1w) 1737 | -10/Subcaves | A swath of the cavern ceiling suddenly collapsed 1780 | -10/Subcaves | Destroyed by B6-NS3(R) with Subdweller Machine Gun Last Messages --------------- 01667_ Core temporarily expanded with Weapon slot. 01668_ Acquired 11 matter. 01674_ The unstable cave ceiling collapses. 01681_ Acquired Sub. Monowheel. 01684_ Acquired 8 matter. 01686_ The unstable cave ceiling collapses. 01686_ Humpback crushed. 01689_ The unstable cave ceiling collapses. 01695_ Acquired 15 matter. 01696_ The unstable cave ceiling collapses. 01697_ Tech Extrapolator violently self-destructs. 01697_ Imp. Aluminum Leg destroyed. 01701_ The unstable cave ceiling collapses. 01709_ Subatomizers dissect the Sub. Power Source. 01709_ The unstable cave ceiling collapses. A swath of the cavern ceiling suddenly collapses. Map ----- +----------------------------------------------------+ | ??????????????????????????????????????????? | | ??????????????????????????????????????????? | | ??????????????????????????????????????????? | | ??????????????????????????????????????????? | | ??????????????????????????????????????????? | | ??????????????????????????????????????????? | | ??????????????????????????????????????????? | | ??????????????????????????????????????????? | | ??????????????????????????????????????????? | | ??????????????????????????????????????????? | | ??????????????????????????????????????????? | | ??????????????????????????????????????????? | | ??????????????????????????????????????????? | | ??????????????????????????????????????????? | | ??????????????????????????????????????????? | | ??????????????????????????????????????????? | | ??????????????????????????????????????????? | | ??????????????????????????????????????????? | | ??????????????????????????????????????????? | | ??????????????????????????????????????????? | | ??????????????????????????????????????????? | | ??????????????????????????????????????????? | | ??????????????????????????????????????????? | | ??????????????????????????????????????????? | | ????????????????????????###???????????????? | | ????????????????????????#@#???????????????? | | ???????????????????????##R#???????????????? | | ?#????????#?????????####R##???????????????? | | ?#???????#??????????#"" ###???????????????? | | ??#???????#?????????#"# ""##??????????????? | | ??????????#?????????#"""#""##?????????????? | | ??????#??#??????????#"#""#""#?????????????? | | ?#######???????????#"###"#""#?????????????? | | ## ##??????????###""#""##?????????????? | | ######????????##"""##?????????????? | | ###??????#"#"##??????????????? | | ##??#### # #??????????????? | | #?## #??????????????? | | # ### ##??????????????? | | & # ## ######?????????????? | | # # #### #?## #?????????????? | | | # # # #?# #?????????????? | | ## ### #?????????????? | | # #??????????????? | | # # # ## #??????????????? | | #### ### #??????????????? | | ###?###?## #??????????????? | | #??????# #??????????????? | | ## # #??????# #??????????????? | | #### # ##????? #??????????????? | +----------------------------------------------------+ Best States ------------- Heat Dissipation 25 Energy Generation 17 Energy Capacity 200 Matter Stores 300 Matter Capacity 300 Sight Range 16 Terrain Scan Range 16 Terrain Scan Density 10 Weapon Shielding 33 Evasion (%) 40 Recoil Reduction 2 Item Schematics ----------------- None Robot Schematics ------------------ None Fabricated ------------ Nothing Repaired ---------- Nothing Studied --------- None Alien Tech Used ----------------- None Achievements -------------- None Challenges ------------ None Game ------ Seed TacticalTeleporterNullifier Manual? 0 Play Time 00:17:14 Cumulative 132.3 hours Start 2026.02.17 @ 16:49:44 End 2026.02.17 @ 17:08:50 Sessions 1 Manual Loads 0 Difficulty Rogue Special Mode None Game No. 143 Rogue 143 Adventurer 0 Explorer 0 Win Type - Total 4 Types 4/0/0/0/0/0/0/0/0/0 Lore% 69 Gallery% 53 Achievement% 42 Wizard Run 0 Options --------- Layout 1 ASCII 0 Keyboard 1 Movement Vi Keybinds 0 Fullscreen 2 Font 24/Terminus Map View 50x35 Zoom Use 0% Tactical HUD 1 Map Filters NONE Filters NONE Steam 1 RUN: 117c902a-1244-4a13-81c9-5c2ef9df17cc